[Event "FIDE World Rapid-ch Open 2018"]
[White "Shirov, Alexei"]
[Black "Svidler, Peter"]
[Site "St. Petersburg"]
[Round "13.14"]
[Annotator "ChessBase"]
[Result "0-1"]
[Date "2018.12.28"]
[WhiteElo "2643"]
[BlackElo "2737"]
[PlyCount "112"]
[TimeControl "900+10"]

1. e4 {[%emt 0:0:0]} c5 {[%emt 0:0:18]} 2. Nf3 {[%emt 0:0:0]} Nc6 {[%emt 0:0:19]
} 3. d4 {[%emt 0:0:9]} cxd4 {[%emt 0:0:2]} 4. Nxd4 {[%emt 0:0:0]} e6 {[%emt 0:0:4]} 5. Nc3 {[%emt 0:0:2]} a6 {[%emt 0:0:28]} 6. Be3 {[%emt 0:1:51]} Nf6 {[%emt 0:0:6]} 7. f4 {[%emt 0:0:7]} Bb4 {[%emt 0:0:0]} 8. Bd3 {[%emt 0:0:2]} e5 {[%emt 0:0:3]} 9. fxe5 {[%emt 0:0:4]} Nxe5 {[%emt 0:0:1]} 10. 0-0 {[%emt 0:0:14]} Bc5 {[%emt 0:1:16]} 11. h3 {[%emt 0:0:0]} d6 {[%emt 0:0:25]} 12. Qe1 {[%emt 0:0:22]} 0-0 {[%emt 0:0:35]} 13. Rd1 {[%emt 0:0:3]} Re8 {[%emt 0:2:58]} 14. Qf2 {[%emt 0:1:35]} Be6 {[%emt 0:0:35]
} 15. Nxe6 {[%emt 0:3:30]} Bxe3 {[%emt 0:0:20]} 16. Nxd8 {[%emt 0:0:2]
} Bxf2+ {[%emt 0:0:2]} 17. Rxf2 {[%emt 0:0:42]} Rexd8 {[%emt 0:0:9]
} 18. Rfd2 {[%emt 0:0:10]} Kf8 {[%emt 0:0:12]} 19. Be2 {[%emt 0:0:2]
} Ke7 {[%emt 0:0:1]} 20. g4 {[%emt 0:0:18]} h6 {[%emt 0:0:27]
} 21. h4 {[%emt 0:0:33]} Rac8 {[%emt 0:1:15]} 22. g5 {[%emt 0:1:38]} hxg5 {[%emt 0:0:1]
} 23. hxg5 {[%emt 0:0:1]} Nh7 {[%emt 0:0:22]} 24. Nd5+ {[%emt 0:0:2]
} Kf8 {[%emt 0:0:42]} 25. g6 {[%emt 0:0:4]} Nxg6 {[%emt 0:0:0]} 26. Bg4 {[%emt 0:0:2]} Rc4 {[%emt 0:0:58]} 27. b3 {[%emt 0:1:20]} Rxe4 {[%emt 0:0:18]} 28. Bf5 {[%emt 0:0:1]} Re5 {[%emt 0:1:23]} 29. Bxg6 {[%emt 0:0:2]
} fxg6 {[%emt 0:0:49]} 30. Nf4 {[%emt 0:0:38]} Re4 {[%emt 0:0:0]} 31. Rf1 {[%emt 0:0:23]} Kf7 {[%emt 0:0:32]} 32. Nh3+ {[%emt 0:0:8]} Kg8 {[%emt 0:0:29]} 33. Rfd1 {[%emt 0:0:4]} Re3 {[%emt 0:1:5]} 34. Nf4 {[%emt 0:0:10]
} g5 {[%emt 0:0:4]} 35. Nd5 {[%emt 0:0:7]} Re4 {[%emt 0:0:0]} 36. Nb6 {[%emt 0:0:14]} g4 {[%emt 0:0:15]} 37. Nc4 {[%emt 0:0:12]} Ng5 {[%emt 0:0:28]} 38. Nxd6 {[%emt 0:0:4]} Nf3+ {[%emt 0:0:53]} 39. Kg2 {[%emt 0:0:1]
} Re6 {[%emt 0:0:1]} 40. Rd5 {[%emt 0:0:2]} Nh4+ {[%emt 0:0:0]} 41. Kh2 {[%emt 0:0:28]} g3+ {[%emt 0:0:15]} 42. Kh3 {[%emt 0:0:5]} g2 {[%emt 0:0:26]} 43. Kxh4 {[%emt 0:0:21]} Rexd6 {[%emt 0:0:3]} 44. Rxd6 {[%emt 0:0:2]
} Rxd6 {[%emt 0:0:1]} 45. Re1 {[%emt 0:0:21]} Rd2 {[%emt 0:0:0]} 46. Kg3 {[%emt 0:0:8]} Rxc2 {[%emt 0:0:2]} 47. a4 {[%emt 0:0:5]} Rb2 {[%emt 0:0:8]} 48. Kh2 {[%emt 0:0:6]} Rxb3 {[%emt 0:0:11]} 49. Kxg2 {[%emt 0:0:4]
} a5 {[%emt 0:0:3]} 50. Re7 {[%emt 0:0:10]} b6 {[%emt 0:0:8]
} 51. Rc7 {[%emt 0:0:17]} Rb4 {[%emt 0:0:8]} 52. Rc6 {[%emt 0:0:16]} Kf7 {[%emt 0:0:3]
} 53. Kf3 {[%emt 0:0:1]} g5 {[%emt 0:0:8]} 54. Rh6 {[%emt 0:0:0]} Ke7 {[%emt 0:0:4]} 55. Rg6 {[%emt 0:0:4]} g4+ {[%emt 0:0:2]} 56. Ke2 {[%emt 0:0:17]} Kd7 {[%emt 0:0:1]} 0-1

[Event "FIDE World Rapid-ch Open 2018"]
[White "Mamedov, Rauf"]
[Black "Saric, Ivan"]
[Site "St. Petersburg"]
[Round "13.15"]
[Annotator "ChessBase"]
[Result "0-1"]
[Date "2018.12.28"]
[WhiteElo "2703"]
[BlackElo "2695"]
[PlyCount "70"]
[TimeControl "900+10"]

1. e4 {[%emt 0:0:0]} c5 {[%emt 0:0:0]} 2. Nf3 {[%emt 0:0:0]} d6 {[%emt 0:0:0]} 3. Nc3 {[%emt 0:0:0]} Nf6 {[%emt 0:0:0]} 4. e5 {[%emt 0:0:0]} dxe5 {[%emt 0:0:0]} 5. Nxe5 {[%emt 0:0:0]} a6 {[%emt 0:0:2]} 6. g3 {[%emt 0:0:0]
} Qc7 {[%emt 0:0:17]} 7. d4 {[%emt 0:0:0]} cxd4 {[%emt 0:0:0]} 8. Qxd4 {[%emt 0:0:0]} Nc6 {[%emt 0:0:8]} 9. Nxc6 {[%emt 0:0:1]} Qxc6 {[%emt 0:0:4]} 10. Bg5 {[%emt 0:0:2]} Qd7 {[%emt 0:8:21]} 11. Bxf6 {[%emt 0:6:0]
} gxf6 {[%emt 0:1:11]} 12. Nd5 {[%emt 0:0:6]} Bh6 {[%emt 0:0:0]} 13. Rd1 {[%emt 0:1:40]} Qe6+ {[%emt 0:0:40]} 14. Be2 {[%emt 0:0:15]} 0-0 {[%emt 0:0:1]} 15. Qc5 {[%emt 0:1:55]} Qe4 {[%emt 0:0:43]} 16. f3 {[%emt 0:0:20]
} Qe5 {[%emt 0:0:34]} 17. f4 {[%emt 0:0:52]} Qxb2 {[%emt 0:0:0]} 18. 0-0 {[%emt 0:1:35]} Be6 {[%emt 0:0:45]} 19. Nxe7+ {[%emt 0:0:5]} Kh8 {[%emt 0:0:4]} 20. Bd3 {[%emt 0:1:36]} Rad8 {[%emt 0:0:47]} 21. Qh5 {[%emt 0:0:14]
} Rxd3 {[%emt 0:0:38]} 22. cxd3 {[%emt 0:1:23]} Bg7 {[%emt 0:0:0]} 23. Nf5 {[%emt 0:0:8]} Rc8 {[%emt 0:0:50]} 24. Rb1 {[%emt 0:1:5]} Qxa2 {[%emt 0:0:23]} 25. Nd4 {[%emt 0:1:10]} Bd5 {[%emt 0:0:8]} 26. Qe2 {[%emt 0:0:13]
} f5 {[%emt 0:0:5]} 27. Qxa2 {[%emt 0:0:2]} Bxa2 {[%emt 0:0:0]} 28. Rb4 {[%emt 0:0:21]} a5 {[%emt 0:0:22]} 29. Ra4 {[%emt 0:0:0]} Bxd4+ 30. Rxd4 b5 {[%emt 0:0:36]} 31. g4 {[%emt 0:0:49]} b4 {[%emt 0:0:10]} 32. Ra1 {[%emt 0:0:10]} b3 33. Ra4 Rc2 {[%emt 0:0:9]} 34. g5 {[%emt 0:0:14]
} b2 {[%emt 0:0:2]} 35. R4xa2 {[%emt 0:0:1]} Rc1+ 0-1

[Event "FIDE World Rapid-ch Open 2018"]
[White "Anton Guijarro, David"]
[Black "Amin, Bassem"]
[Site "St. Petersburg"]
[Round "13.17"]
[Annotator "ChessBase"]
[Result "1-0"]
[Date "2018.12.28"]
[WhiteElo "2642"]
[BlackElo "2710"]
[PlyCount "71"]
[TimeControl "900+10"]

1. e4 {[%emt 0:0:0]} e5 {[%emt 0:1:44]} 2. Nf3 {[%emt 0:0:0]} Nc6 {[%emt 0:0:2]
} 3. Bc4 {[%emt 0:0:0]} Bc5 {[%emt 0:0:25]} 4. c3 {[%emt 0:0:0]} Nf6 {[%emt 0:0:3]} 5. d4 {[%emt 0:0:3]} exd4 {[%emt 0:0:3]} 6. e5 {[%emt 0:0:2]
} d5 {[%emt 0:0:18]} 7. Bb5 {[%emt 0:0:3]} Ne4 {[%emt 0:0:7]
} 8. cxd4 {[%emt 0:0:3]} Bb6 {[%emt 0:0:6]} 9. Nc3 {[%emt 0:0:3]} 0-0 {[%emt 0:0:5]
} 10. Be3 {[%emt 0:0:3]} f6 {[%emt 0:1:30]} 11. Qb3 {[%emt 0:0:0]} Nxc3 {[%emt 0:0:21]} 12. Bxc6 {[%emt 0:0:3]} bxc6 {[%emt 0:0:7]} 13. Qxc3 {[%emt 0:0:2]} Bg4 {[%emt 0:0:45]} 14. exf6 {[%emt 0:0:52]} Qxf6 {[%emt 0:2:6]
} 15. Ne5 {[%emt 0:0:20]} Bf5 {[%emt 0:0:19]} 16. 0-0 {[%emt 0:0:0]} Rae8 {[%emt 0:0:32]} 17. b4 {[%emt 0:0:58]} Qh4 {[%emt 0:3:7]} 18. f4 {[%emt 0:2:20]} Be4 {[%emt 0:0:17]} 19. Rf2 {[%emt 0:0:27]} Re6 {[%emt 0:0:0]} 20. Raf1 {[%emt 0:2:22]} Rh6 {[%emt 0:0:55]} 21. h3 {[%emt 0:0:7]} Qg3 {[%emt 0:0:35]} 22. Rf3 {[%emt 0:0:27]} Bxf3 {[%emt 0:0:18]} 23. Rxf3 {[%emt 0:0:5]
} Qh4 {[%emt 0:0:11]} 24. a4 {[%emt 0:0:22]} a6 {[%emt 0:0:24]
} 25. a5 {[%emt 0:0:5]} Ba7 {[%emt 0:0:1]} 26. Nxc6 {[%emt 0:1:19]} Bb8 {[%emt 0:0:5]
} 27. f5 {[%emt 0:1:14]} Rhf6 {[%emt 0:1:21]} 28. Bf2 {[%emt 0:0:0]} Qg5 {[%emt 0:1:2]} 29. Qc5 {[%emt 0:0:50]} Kh8 {[%emt 0:0:19]} 30. Bg3 {[%emt 0:1:21]} h5 {[%emt 0:1:3]} 31. b5 {[%emt 0:0:40]} axb5 {[%emt 0:0:0]} 32. a6 {[%emt 0:0:32]} Kh7 {[%emt 0:0:11]} 33. Nxb8 {[%emt 0:0:34]} Rxb8 {[%emt 0:0:7]} 34. a7 {[%emt 0:0:4]} Ra8 {[%emt 0:0:25]} 35. Be5 {[%emt 0:0:43]
} Rxf5 {[%emt 0:0:35]} 36. Qc2 {[%emt 0:0:12]} 1-0

[Event "FIDE World Rapid-ch Open 2018"]
[White "Cheparinov, Ivan"]
[Black "Rakhmanov, Aleksandr"]
[Site "St. Petersburg"]
[Round "13.18"]
[Annotator "ChessBase"]
[Result "1/2-1/2"]
[Date "2018.12.28"]
[WhiteElo "2709"]
[BlackElo "2629"]
[PlyCount "80"]
[TimeControl "900+10"]

1. Nf3 {[%emt 0:0:0]} Nf6 {[%emt 0:0:0]} 2. c4 {[%emt 0:0:0]} d6 {[%emt 0:0:0]
} 3. d4 {[%emt 0:0:3]} g6 {[%emt 0:0:2]} 4. Nc3 {[%emt 0:0:0]} Bf5 {[%emt 0:0:3]} 5. Qb3 {[%emt 0:0:15]} b6 {[%emt 0:0:2]} 6. g3 {[%emt 0:0:7]
} Bg7 {[%emt 0:0:9]} 7. Bg2 {[%emt 0:0:13]} Nc6 {[%emt 0:0:0]} 8. Qa4 {[%emt 0:1:11]} Bd7 {[%emt 0:0:3]} 9. Qd1 {[%emt 0:0:3]} 0-0 {[%emt 0:0:14]
} 10. 0-0 {[%emt 0:0:4]} e5 {[%emt 0:0:59]} 11. d5 {[%emt 0:0:0]} Ne7 {[%emt 0:0:12]} 12. e4 {[%emt 0:0:5]} Ne8 {[%emt 0:0:47]} 13. Ne1 {[%emt 0:0:21]} f5 {[%emt 0:0:6]} 14. Nd3 {[%emt 0:0:43]} Nf6 {[%emt 0:0:0]} 15. f3 {[%emt 0:0:39]} a5 {[%emt 0:1:11]} 16. Bd2 {[%emt 0:0:6]} h5 {[%emt 0:0:27]} 17. h4 {[%emt 0:3:14]} fxe4 {[%emt 0:0:30]} 18. fxe4 {[%emt 0:0:5]
} Ng4 {[%emt 0:0:5]} 19. Qe2 {[%emt 0:0:8]} Kh7 {[%emt 0:0:0]} 20. Rxf8 {[%emt 0:0:11]} Qxf8 {[%emt 0:0:19]} 21. Rf1 {[%emt 0:0:0]} Qe8 {[%emt 0:0:44]} 22. Ne1 {[%emt 0:0:21]} Ng8 {[%emt 0:0:14]} 23. Nf3 {[%emt 0:0:1]
} N8f6 {[%emt 0:0:5]} 24. Ng5+ {[%emt 0:0:1]} Kg8 {[%emt 0:0:0]} 25. Nb5 {[%emt 0:0:13]} Rc8 {[%emt 0:0:49]} 26. b3 {[%emt 0:0:8]} Nh7 {[%emt 0:0:21]} 27. Nxh7 {[%emt 0:1:39]} Kxh7 {[%emt 0:0:2]} 28. Nc3 {[%emt 0:0:37]
} Qe7 {[%emt 0:2:4]} 29. Bg5 {[%emt 0:0:20]} Bf6 {[%emt 0:0:0]} 30. Bxf6 {[%emt 0:1:0]} Nxf6 {[%emt 0:0:2]} 31. Qd2 {[%emt 0:0:54]} Kg7 {[%emt 0:0:38]} 32. Qg5 {[%emt 0:0:47]} Rf8 {[%emt 0:0:40]} 33. Nb1 {[%emt 0:0:27]
} Qd8 {[%emt 0:0:43]} 34. Nd2 {[%emt 0:0:25]} Nh7 {[%emt 0:0:0]} 35. Qxd8 {[%emt 0:0:17]} Rxd8 {[%emt 0:0:2]} 36. Nf3 {[%emt 0:0:12]} Bg4 {[%emt 0:1:26]} 37. Ng5 {[%emt 0:0:35]} Nxg5 {[%emt 0:0:50]} 38. hxg5 {[%emt 0:0:2]
} Rf8 {[%emt 0:2:35]} 39. Rxf8 {[%emt 0:0:11]} Kxf8 {[%emt 0:0:0]} 40. Kf2 {[%emt 0:0:7]} Ke7 {[%emt 0:0:25]} 1/2-1/2

[Event "FIDE World Rapid-ch Open 2018"]
[White "Antipov, Mikhail Al."]
[Black "Motylev, Alexander"]
[Site "St. Petersburg"]
[Round "13.19"]
[Annotator "ChessBase"]
[Result "1/2-1/2"]
[Date "2018.12.28"]
[WhiteElo "2589"]
[BlackElo "2644"]
[PlyCount "68"]
[TimeControl "900+10"]

1. e4 {[%emt 0:0:0]} e5 {[%emt 0:0:0]} 2. Nf3 {[%emt 0:0:0]} Nc6 {[%emt 0:0:0]
} 3. Bb5 {[%emt 0:0:0]} Nge7 {[%emt 0:0:2]} 4. h4 {[%emt 0:0:0]} Nd4 {[%emt 0:0:47]} 5. Nxd4 {[%emt 0:2:54]} exd4 {[%emt 0:0:1]} 6. Qf3 {[%emt 0:0:14]} c6 {[%emt 0:0:18]} 7. Bc4 {[%emt 0:2:7]} d5 {[%emt 0:0:0]} 8. exd5 {[%emt 0:0:1]} Nxd5 {[%emt 0:0:17]} 9. Bxd5 {[%emt 0:0:12]} cxd5 {[%emt 0:0:30]} 10. d3 {[%emt 0:2:23]} Be7 {[%emt 0:2:33]} 11. h5 {[%emt 0:0:22]
} 0-0 {[%emt 0:0:3]} 12. 0-0 {[%emt 0:0:9]} Be6 {[%emt 0:0:0]} 13. h6 {[%emt 0:0:5]} g5 {[%emt 0:0:31]} 14. Nd2 {[%emt 0:0:27]} g4 {[%emt 0:2:23]
} 15. Qf4 {[%emt 0:0:51]} Bg5 {[%emt 0:0:8]} 16. Qh2 {[%emt 0:0:0]} f5 {[%emt 0:0:23]} 17. Nb3 {[%emt 0:0:54]} f4 {[%emt 0:0:29]} 18. Nxd4 {[%emt 0:0:2]} Bd7 {[%emt 0:0:5]} 19. g3 {[%emt 0:2:0]} Rf6 {[%emt 0:2:45]
} 20. Bxf4 {[%emt 0:1:4]} Bxf4 {[%emt 0:0:34]} 21. gxf4 {[%emt 0:0:2]
} Qb6 {[%emt 0:0:11]} 22. c3 {[%emt 0:0:15]} Rxh6 {[%emt 0:0:0]} 23. Qg2 {[%emt 0:0:0]} Qd6 {[%emt 0:0:25]} 24. Rae1 {[%emt 0:0:26]} Rh5 {[%emt 0:1:36]} 25. Re3 {[%emt 0:1:33]} Qxf4 {[%emt 0:0:31]} 26. Re7 {[%emt 0:0:6]
} Qd6 {[%emt 0:0:20]} 27. Rfe1 {[%emt 0:0:4]} Rf8 {[%emt 0:0:0]} 28. Qg3 {[%emt 0:0:21]} Qh6 {[%emt 0:0:19]} 29. Qg2 {[%emt 0:0:18]} g3 {[%emt 0:0:15]} 30. fxg3 {[%emt 0:0:46]} Bh3 {[%emt 0:0:7]} 31. Qe2 {[%emt 0:0:1]
} Bc8 {[%emt 0:0:44]} 32. Qg2 {[%emt 0:0:2]} Bh3 {[%emt 0:0:0]} 33. Qe2 {[%emt 0:0:1]} Bc8 {[%emt 0:0:43]} 34. Qg2 {[%emt 0:0:1]} Bh3 {[%emt 0:0:10]} 1/2-1/2

[Event "FIDE World Rapid-ch Open 2018"]
[White "Amonatov, Farrukh"]
[Black "Paravyan, David"]
[Site "St. Petersburg"]
[Round "13.20"]
[Annotator "ChessBase"]
[Result "1/2-1/2"]
[Date "2018.12.28"]
[WhiteElo "2614"]
[BlackElo "2634"]
[PlyCount "119"]
[TimeControl "900+10"]

1. e4 {[%emt 0:0:0]} e5 {[%emt 0:0:0]} 2. Nf3 {[%emt 0:0:0]} Nc6 {[%emt 0:0:0]
} 3. Bb5 {[%emt 0:0:0]} Nf6 {[%emt 0:0:0]} 4. d3 {[%emt 0:0:0]} Bc5 {[%emt 0:0:0]} 5. Bxc6 {[%emt 0:0:1]} dxc6 {[%emt 0:0:0]} 6. Nbd2 {[%emt 0:0:1]} 0-0 {[%emt 0:0:7]} 7. Qe2 {[%emt 0:0:4]} Nd7 {[%emt 0:0:8]
} 8. 0-0 {[%emt 0:0:9]} Be7 {[%emt 0:0:56]} 9. Nc4 {[%emt 0:0:0]} f6 {[%emt 0:0:2]} 10. Nh4 {[%emt 0:0:6]} Nc5 {[%emt 0:0:2]} 11. Nf5 {[%emt 0:0:15]} Bxf5 {[%emt 0:2:33]} 12. exf5 {[%emt 0:0:2]} Na4 {[%emt 0:0:3]
} 13. Qg4 {[%emt 0:0:44]} Nb6 {[%emt 0:0:5]} 14. Nd2 {[%emt 0:0:0]} Nd5 {[%emt 0:0:26]} 15. Ne4 {[%emt 0:0:3]} Kh8 {[%emt 0:0:18]} 16. Bd2 {[%emt 0:0:5]} a5 {[%emt 0:0:29]} 17. a3 {[%emt 0:0:31]} Qe8 {[%emt 0:0:0]} 18. Rae1 {[%emt 0:0:10]} Qf7 {[%emt 0:0:1]} 19. Ng3 {[%emt 0:1:10]} Bd6 {[%emt 0:0:15]} 20. Re4 {[%emt 0:0:5]} b6 {[%emt 0:3:12]} 21. Rfe1 {[%emt 0:0:34]
} Rae8 {[%emt 0:0:8]} 22. Rc4 {[%emt 0:0:52]} c5 {[%emt 0:0:0]} 23. Qf3 {[%emt 0:0:22]} Nf4 {[%emt 0:0:31]} 24. Rce4 {[%emt 0:0:5]} g6 {[%emt 0:1:4]} 25. h3 {[%emt 0:3:2]} Rg8 {[%emt 0:0:20]} 26. fxg6 {[%emt 0:4:32]
} hxg6 {[%emt 0:0:1]} 27. Bxf4 {[%emt 0:0:6]} exf4 {[%emt 0:0:0]} 28. Rxe8 {[%emt 0:0:2]} Rxe8 {[%emt 0:0:1]} 29. Rxe8+ {[%emt 0:0:0]} Qxe8 {[%emt 0:0:1]} 30. Ne2 {[%emt 0:0:40]} Qe5 {[%emt 0:1:3]} 31. c3 {[%emt 0:0:7]} f5 {[%emt 0:0:11]} 32. Kf1 {[%emt 0:0:11]} Kg7 {[%emt 0:0:0]} 33. Ke1 {[%emt 0:1:2]} Qe6 {[%emt 0:0:30]} 34. Kd2 {[%emt 0:0:1]} g5 {[%emt 0:0:1]} 35. g4 {[%emt 0:1:44]} fxg3 {[%emt 0:0:26]} 36. fxg3 {[%emt 0:0:1]
} Qh6 {[%emt 0:0:34]} 37. g4 {[%emt 0:0:3]} f4 {[%emt 0:0:36]
} 38. Qd5 {[%emt 0:0:23]} Qh4 {[%emt 0:0:47]} 39. d4 {[%emt 0:0:22]} c4 {[%emt 0:0:18]
} 40. a4 {[%emt 0:0:33]} Kh8 {[%emt 0:1:36]} 41. Qa8+ {[%emt 0:0:0]} Kg7 {[%emt 0:0:2]} 42. Qd5 {[%emt 0:0:1]} Qh6 {[%emt 0:0:51]} 43. Qf5 {[%emt 0:0:14]} Qf6 {[%emt 0:0:4]} 44. Qd7+ {[%emt 0:0:29]} Kh6 {[%emt 0:0:4]
} 45. d5 {[%emt 0:0:27]} Be5 {[%emt 0:0:11]} 46. Qe6 {[%emt 0:0:0]} Qxe6 {[%emt 0:0:29]} 47. dxe6 {[%emt 0:0:1]} Kg6 {[%emt 0:0:1]} 48. Ng1 {[%emt 0:0:7]} Kf6 {[%emt 0:0:22]} 49. Nf3 {[%emt 0:0:0]} Bd6 {[%emt 0:0:1]
} 50. Ke2 {[%emt 0:0:16]} Be7 {[%emt 0:1:3]} 51. Nd2 {[%emt 0:0:0]} Kxe6 {[%emt 0:0:4]} 52. Nxc4 {[%emt 0:0:1]} Kd5 {[%emt 0:0:6]} 53. Nd2 {[%emt 0:0:9]} c6 {[%emt 0:0:0]} 54. Kd3 {[%emt 0:0:13]} Bd8 {[%emt 0:0:37]
} 55. b3 {[%emt 0:0:14]} Be7 {[%emt 0:0:4]} 56. Nf3 {[%emt 0:0:0]} Bf6 {[%emt 0:0:3]} 57. Nd2 {[%emt 0:0:21]} Bd8 {[%emt 0:0:13]} 58. Nf3 {[%emt 0:0:16]} Bf6 {[%emt 0:0:1]} 59. Nd2 {[%emt 0:0:11]} Bd8 {[%emt 0:0:1]
} 60. Nf3 {Ke4+ Kxe4} 1/2-1/2

[Event "FIDE World Rapid-ch Open 2018"]
[White "Duda, Jan-Krzysztof"]
[Black "Tang, Andrew"]
[Site "St. Petersburg"]
[Round "13.21"]
[Annotator "ChessBase"]
[Result "1-0"]
[Date "2018.12.28"]
[WhiteElo "2738"]
[BlackElo "2487"]
[PlyCount "69"]
[TimeControl "900+10"]

1. Nf3 {[%emt 0:0:0]} d5 {[%emt 0:0:0]} 2. c4 {[%emt 0:0:0]} e6 {[%emt 0:0:0]} 3. e3 {[%emt 0:0:0]} Nf6 {[%emt 0:0:0]} 4. b3 {[%emt 0:0:0]} c5 {[%emt 0:0:2]
} 5. Bb2 {[%emt 0:0:1]} Nc6 {[%emt 0:0:3]} 6. cxd5 {[%emt 0:0:0]} exd5 {[%emt 0:0:16]} 7. Bb5 {[%emt 0:0:27]} Bd6 {[%emt 0:0:24]} 8. 0-0 {[%emt 0:0:32]} 0-0 {[%emt 0:0:51]} 9. d4 {[%emt 0:0:23]} cxd4 {[%emt 0:0:0]} 10. Nxd4 {[%emt 0:1:23]} Bg4 {[%emt 0:0:11]} 11. Be2 {[%emt 0:0:22]} Bxe2 {[%emt 0:0:28]} 12. Qxe2 {[%emt 0:0:10]} Re8 {[%emt 0:0:37]} 13. Nd2 {[%emt 0:0:13]
} Be5 {[%emt 0:3:2]} 14. Nxc6 {[%emt 0:1:12]} bxc6 {[%emt 0:0:0]} 15. Bxe5 {[%emt 0:0:3]} Rxe5 {[%emt 0:0:2]} 16. Rac1 {[%emt 0:0:0]} Qb6 {[%emt 0:0:59]} 17. Rc2 {[%emt 0:0:28]} c5 {[%emt 0:0:13]} 18. Rfc1 {[%emt 0:0:16]} Rc8 {[%emt 0:0:2]} 19. Qd3 {[%emt 0:0:18]} h6 {[%emt 0:0:0]} 20. h3 {[%emt 0:0:2]} Re7 {[%emt 0:0:8]} 21. Qf5 {[%emt 0:1:4]} Rec7 {[%emt 0:0:44]} 22. Nf3 {[%emt 0:0:38]} Qd6 {[%emt 0:0:23]} 23. Qe5 {[%emt 0:4:8]
} Qb6 {[%emt 0:0:39]} 24. Nd4 {[%emt 0:0:37]} Re8 {[%emt 0:0:0]} 25. Qf4 {[%emt 0:0:23]} Ne4 {[%emt 0:0:12]} 26. Nf5 {[%emt 0:1:30]} Rc6 {[%emt 0:1:11]} 27. Rd1 {[%emt 0:1:2]} Rf6 {[%emt 0:1:23]} 28. Rxd5 {[%emt 0:1:13]
} Qe6 {[%emt 0:0:33]} 29. Qg4 {[%emt 0:0:2]} Rg6 {[%emt 0:0:0]} 30. Qd1 {[%emt 0:0:1]} Rg5 {[%emt 0:0:12]} 31. g4 {[%emt 0:0:36]} h5 {[%emt 0:0:10]
} 32. f4 {[%emt 0:0:10]} Rg6 {[%emt 0:0:52]} 33. Re5 {[%emt 0:0:0]} Qc8 {[%emt 0:1:5]} 34. Ne7+ {[%emt 0:0:31]} Rxe7 {[%emt 0:0:4]} 35. Rxe7 {[%emt 0:0:1]} 1-0

[Event "FIDE World Rapid-ch Open 2018"]
[White "Jakovenko, Dmitry"]
[Black "Sakaev, Konstantin"]
[Site "St. Petersburg"]
[Round "13.22"]
[Annotator "ChessBase"]
[Result "1-0"]
[Date "2018.12.28"]
[WhiteElo "2735"]
[BlackElo "2584"]
[PlyCount "79"]
[TimeControl "900+10"]

1. e4 {[%emt 0:0:0]} c5 {[%emt 0:0:0]} 2. Nf3 {[%emt 0:0:0]} d6 {[%emt 0:0:0]} 3. d4 {[%emt 0:0:0]} cxd4 {[%emt 0:0:0]} 4. Nxd4 {[%emt 0:0:0]} Nf6 {[%emt 0:0:0]} 5. Nc3 {[%emt 0:0:0]} a6 {[%emt 0:0:0]} 6. f3 {[%emt 0:0:0]
} e5 {[%emt 0:0:6]} 7. Nb3 {[%emt 0:0:0]} Be6 {[%emt 0:0:2]
} 8. Be3 {[%emt 0:0:2]} Be7 {[%emt 0:0:8]} 9. Qd2 {[%emt 0:0:4]} 0-0 {[%emt 0:0:3]
} 10. 0-0-0 {[%emt 0:0:2]} Nbd7 {[%emt 0:0:2]} 11. g4 {[%emt 0:0:18]
} b5 {[%emt 0:0:1]} 12. g5 {[%emt 0:0:21]} Nh5 {[%emt 0:0:3]
} 13. Kb1 {[%emt 0:0:27]} Nb6 {[%emt 0:0:39]} 14. Nd5 {[%emt 0:0:31]} Nxd5 {[%emt 0:0:42]
} 15. exd5 {[%emt 0:0:2]} Bd7 {[%emt 0:0:1]} 16. Na5 {[%emt 0:0:13]
} Rc8 {[%emt 0:0:26]} 17. c4 {[%emt 0:3:2]} Qc7 {[%emt 0:0:0]} 18. Rc1 {[%emt 0:0:59]} Qb8 {[%emt 0:3:59]} 19. Bd3 {[%emt 0:3:49]} b4 {[%emt 0:2:19]} 20. c5 {[%emt 0:1:33]} dxc5 {[%emt 0:0:15]} 21. Bxa6 {[%emt 0:0:4]
} Rcd8 {[%emt 0:0:18]} 22. Bc4 {[%emt 0:1:16]} Qa7 {[%emt 0:0:0]} 23. Qxb4 {[%emt 0:0:10]} cxb4 {[%emt 0:3:21]} 24. Bxa7 {[%emt 0:0:2]} Bxg5 {[%emt 0:0:1]} 25. Rcg1 {[%emt 0:1:27]} Bf6 {[%emt 0:1:57]} 26. Bc5 {[%emt 0:2:33]
} Bf5+ {[%emt 0:0:2]} 27. Ka1 {[%emt 0:0:5]} e4 {[%emt 0:0:0]} 28. Bxf8 {[%emt 0:0:34]} Kxf8 {[%emt 0:0:5]} 29. Nc6 {[%emt 0:0:20]} Re8 {[%emt 0:0:5]} 30. Re1 {[%emt 0:1:2]} e3 {[%emt 0:0:40]} 31. Nxb4 {[%emt 0:0:7]
} Nf4 {[%emt 0:0:2]} 32. a4 {[%emt 0:0:4]} e2 {[%emt 0:0:32]
} 33. Bb5 {[%emt 0:0:19]} Re3 {[%emt 0:0:4]} 34. Ka2 {[%emt 0:0:1]} Be7 {[%emt 0:0:41]
} 35. Nc6 {[%emt 0:0:4]} Bh4 {[%emt 0:0:15]} 36. Nd4 {[%emt 0:0:0]} Bd3 {[%emt 0:0:17]} 37. Bxd3 {[%emt 0:0:12]} Bxe1 {[%emt 0:0:1]} 38. Bxe2 {[%emt 0:0:19]} Nxe2 {[%emt 0:0:7]} 39. Nc2 {[%emt 0:0:13]} Nc3+ {[%emt 0:0:18]
} 40. bxc3 {[%emt 0:0:3]} 1-0

[Event "FIDE World Rapid-ch Open 2018"]
[White "Ragger, Markus"]
[Black "Tomashevsky, Evgeny"]
[Site "St. Petersburg"]
[Round "13.23"]
[Annotator "ChessBase"]
[Result "1/2-1/2"]
[Date "2018.12.28"]
[WhiteElo "2687"]
[BlackElo "2705"]
[PlyCount "29"]
[TimeControl "900+10"]

1. e4 {[%emt 0:0:0]} c6 {[%emt 0:0:0]} 2. d4 {[%emt 0:0:0]} d5 {[%emt 0:0:0]} 3. exd5 {[%emt 0:0:0]} cxd5 {[%emt 0:0:0]} 4. Bd3 {[%emt 0:0:0]} Nc6 {[%emt 0:0:0]} 5. c3 {[%emt 0:0:0]} Nf6 {[%emt 0:0:2]} 6. h3 {[%emt 0:0:0]
} g6 {[%emt 0:0:5]} 7. Bf4 {[%emt 0:0:0]} Bf5 {[%emt 0:0:22]
} 8. Be2 {[%emt 0:0:1]} Be4 {[%emt 0:1:43]} 9. Nf3 {[%emt 0:0:9]} Bxf3 {[%emt 0:0:2]
} 10. Bxf3 {[%emt 0:0:7]} e6 {[%emt 0:0:1]} 11. 0-0 {[%emt 0:0:0]} Bd6 {[%emt 0:0:2]} 12. Bh6 {[%emt 0:0:59]} Bf8 {[%emt 0:0:42]} 13. Bf4 {[%emt 0:0:11]} Bd6 {[%emt 0:0:2]} 14. Bh6 {[%emt 0:0:56]} Bf8 {[%emt 0:0:50]
} 15. Bf4 {[%emt 0:3:41]} 1/2-1/2

[Event "FIDE World Rapid-ch Open 2018"]
[White "Guseinov, Gadir"]
[Black "Sarana, Alexey"]
[Site "St. Petersburg"]
[Round "13.24"]
[Annotator "ChessBase"]
[Result "1-0"]
[Date "2018.12.28"]
[WhiteElo "2664"]
[BlackElo "2618"]
[PlyCount "67"]
[TimeControl "900+10"]

1. e4 {[%emt 0:0:0]} c5 {[%emt 0:0:0]} 2. Nc3 {[%emt 0:0:0]} d6 {[%emt 0:0:0]} 3. d4 {[%emt 0:0:0]} cxd4 {[%emt 0:0:0]} 4. Qxd4 {[%emt 0:0:0]} Nc6 {[%emt 0:0:0]} 5. Qd2 {[%emt 0:0:9]} e6 {[%emt 0:0:0]} 6. b3 {[%emt 0:0:6]
} Nf6 {[%emt 0:0:0]} 7. Bb2 {[%emt 0:0:2]} d5 {[%emt 0:0:0]
} 8. exd5 {[%emt 0:0:10]} exd5 {[%emt 0:0:1]} 9. 0-0-0 {[%emt 0:0:2]} Be6 {[%emt 0:0:1]} 10. Nf3 {[%emt 0:0:16]} Qa5 {[%emt 0:0:5]} 11. Nd4 {[%emt 0:1:29]
} Bb4 {[%emt 0:0:3]} 12. Nxe6 {[%emt 0:4:12]} fxe6 {[%emt 0:0:0]} 13. Qe3 {[%emt 0:0:3]} Kf7 {[%emt 0:2:25]} 14. Kb1 {[%emt 0:0:44]} d4 {[%emt 0:0:38]} 15. Rxd4 {[%emt 0:0:1]} Nxd4 {[%emt 0:0:1]} 16. Qxd4 {[%emt 0:0:2]
} Rhd8 {[%emt 0:0:24]} 17. Qe3 {[%emt 0:0:2]} Bxc3 {[%emt 0:0:0]} 18. Bxc3 {[%emt 0:0:2]} Rd1+ {[%emt 0:0:2]} 19. Kb2 {[%emt 0:0:1]
} Qb6 {[%emt 0:0:25]} 20. Qf3 {[%emt 0:0:50]} Rad8 {[%emt 0:0:2]} 21. g3 {[%emt 0:3:17]
} R8d5 {[%emt 0:0:54]} 22. Bc4 {[%emt 0:0:36]} Rxh1 {[%emt 0:0:0]} 23. Qxh1 {[%emt 0:0:9]} Rh5 {[%emt 0:0:54]} 24. f4 {[%emt 0:0:17]} Qc6 {[%emt 0:1:1]} 25. Qd1 {[%emt 0:0:1]} b5 {[%emt 0:1:30]} 26. Bxf6 {[%emt 0:1:23]
} Rxh2 {[%emt 0:0:2]} 27. Bc3 {[%emt 0:3:1]} bxc4 {[%emt 0:0:0]} 28. Qd4 {[%emt 0:0:2]} Kg6 {[%emt 0:1:58]} 29. f5+ {[%emt 0:0:48]} exf5 {[%emt 0:0:35]} 30. Qxg7+ {[%emt 0:0:3]} Kh5 {[%emt 0:0:1]} 31. Qxh7+ {[%emt 0:0:29]} Qh6 {[%emt 0:0:1]} 32. Qxf5+ {[%emt 0:0:10]} Qg5 {[%emt 0:0:0]} 33. g4+ {[%emt 0:0:14]} Kh6 {[%emt 0:0:2]} 34. Qf8+ {[%emt 0:0:6]} 1-0